{"text_format":"1","workbook":"xlsx","n_sheets":5,"sheets":["backup","TATASTL.BO_WBQ","^BSESN_WBQ","ABC_WBQ","XYZ_WBQ"],"not_rendered":{"charts":0,"images":0,"macros":1,"external_links":0,"defined_names":6,"comments":0,"pivot_tables":0},"unopened":[],"bounds":{"document_bytes":16777216,"sheet_cells":100000,"rows_first":2000,"rows_last":500,"rows_between":2000,"halvings":0,"cell_chars":16384,"cell_head_chars":4096},"cells_cut":0,"cells_raw":0,"read":"whole","date_system":"1900"}

{"sheet":"backup","index":0,"n_rows":6,"n_cols":41,"rows_kept":6,"cut":false,"hidden":false,"merged":[]}
[]
[null,null,"2012-09-06","2012-09-07","2012-09-10","2012-09-11","2012-09-12","2012-09-13","2012-09-14","2012-09-17","2012-09-18"]
[null,"^BSESN",{"$f":"LOOKUP(2,1/((INDIRECT(\"'\" & $B3 & \"_WBQ'!$D:$D\")=$B3)*(INDIRECT(\"'\" & $B3 & \"_WBQ'!$E:$E\")=C$2)),INDIRECT(\"'\" & $B3 & \"_WBQ'!$K:$K\"))","v":17346.27},17683.73,17766.78,17852.95,18000.03,18021.16,18464.27,18542.310000000001,18496.009999999998,null,null,null,null,null,null,null,null,null,null,null,null,null,null,null,null,null,null,null,null,null,null,null,null,null,null,null,null,null,{"$f":"LOOKUP(2,1/(('^BSESN_WBQ'!$D:$D=backup!$B3)*('^BSESN_WBQ'!$E:$E=backup!AO$2)),'^BSESN_WBQ'!$K:$K)","v":{"$error":"#N/A"}}]
[null,"TATASTL.BO",387.45,403.75,410,404.9,404.9,393.85,409,406.65,400.65]
[null,"ABC",{"$error":"#N/A"},{"$error":"#N/A"},{"$error":"#N/A"},{"$error":"#N/A"},{"$error":"#N/A"},390.4,407,415,409.9]
[null,"XYZ",{"$error":"#N/A"},{"$error":"#N/A"},{"$error":"#N/A"},{"$error":"#N/A"},{"$error":"#N/A"},388,398,408.6,408.7]

{"sheet":"TATASTL.BO_WBQ","index":1,"n_rows":13,"n_cols":11,"rows_kept":13,"cut":false,"hidden":false,"merged":[]}
[null,null,null,null,"Date","Open","High","Low","Close","Volume","Adj Close*"]
[null,null,null,"TATASTL.BO","2012-09-06",null,null,null,null,null,387.45]
[null,null,null,"TATASTL.BO","2012-09-07",null,null,null,null,null,403.75]
[null,null,null,"TATASTL.BO","2012-09-10",null,null,null,null,null,410]
[null,null,null,"TATASTL.BO","2012-09-11",null,null,null,null,null,404.9]
[null,null,null,"TATASTL.BO","2012-09-12",null,null,null,null,null,404.9]
[null,null,null,"TATASTL.BO","2012-09-13",null,null,null,null,null,393.85]
[null,null,null,"TATASTL.BO","2012-09-14",null,null,null,null,null,409]
[null,null,null,"TATASTL.BO","2012-09-17",null,null,null,null,null,406.65]
[null,null,null,"TATASTL.BO","2012-09-18",null,null,null,null,null,400.65]
[null,null,null,"TATASTL.BO","2012-09-20",null,null,null,null,null,396]
[null,null,null,"TATASTL.BO","2012-09-21",null,null,null,null,null,396.05]
[null,null,null,"TATASTL.BO","2012-09-24",null,null,null,null,null,400.75]

{"sheet":"^BSESN_WBQ","index":2,"n_rows":16,"n_cols":11,"rows_kept":16,"cut":false,"hidden":false,"merged":[]}
[null,null,null,null,"Date","Open","High","Low","Close","Volume","Adj Close*"]
[null,null,null,"^BSESN","2012-09-06",null,null,null,null,null,17346.27]
[null,null,null,"^BSESN","2012-09-07",null,null,null,null,null,17683.73]
[null,null,null,"^BSESN","2012-09-10",null,null,null,null,null,17766.78]
[null,null,null,"^BSESN","2012-09-11",null,null,null,null,null,17852.95]
[null,null,null,"^BSESN","2012-09-12",null,null,null,null,null,18000.03]
[null,null,null,"^BSESN","2012-09-13",null,null,null,null,null,18021.16]
[null,null,null,"^BSESN","2012-09-14",null,null,null,null,null,18464.27]
[null,null,null,"^BSESN","2012-09-17",null,null,null,null,null,18542.310000000001]
[null,null,null,"^BSESN","2012-09-18",null,null,null,null,null,18496.009999999998]
[null,null,null,"^BSESN","2012-09-20",null,null,null,null,null,18349.25]
[null,null,null,"^BSESN","2012-09-21",null,null,null,null,null,18752.830000000002]
[null,null,null,"^BSESN","2012-09-24",null,null,null,null,null,18673.34]
[null,null,null,"^BSESN","2012-09-25",null,null,null,null,null,18694.41]
[null,null,null,"^BSESN","2012-09-26",null,null,null,null,null,18632.169999999998]
[null,null,null,"^BSESN","2012-09-27",null,null,null,null,null,18579.5]

{"sheet":"ABC_WBQ","index":3,"n_rows":13,"n_cols":11,"rows_kept":13,"cut":false,"hidden":false,"merged":[]}
[null,null,null,null,"Date","Open","High","Low","Close","Volume","Adj Close*"]
[null,null,null,"ABC","2012-09-13",null,null,null,null,null,390.4]
[null,null,null,"ABC","2012-09-14",null,null,null,null,null,407]
[null,null,null,"ABC","2012-09-17",null,null,null,null,null,415]
[null,null,null,"ABC","2012-09-18",null,null,null,null,null,409.9]
[null,null,null,"ABC","2012-09-19",null,null,null,null,null,404.9]
[null,null,null,"ABC","2012-09-20",null,null,null,null,null,401.9]
[null,null,null,"ABC","2012-09-21",null,null,null,null,null,413.6]
[null,null,null,"ABC","2012-09-24",null,null,null,null,null,415]
[null,null,null,"ABC","2012-09-25",null,null,null,null,null,408.6]
[null,null,null,"ABC","2012-09-26",null,null,null,null,null,404.9]
[null,null,null,"ABC","2012-09-27",null,null,null,null,null,402.15]
[null,null,null,"ABC","2012-09-28",null,null,null,null,null,408.9]

{"sheet":"XYZ_WBQ","index":4,"n_rows":13,"n_cols":11,"rows_kept":13,"cut":false,"hidden":false,"merged":[]}
[null,null,null,null,"Date","Open","High","Low","Close","Volume","Adj Close*"]
[null,null,null,"XYZ","2012-09-13",null,null,null,null,null,388]
[null,null,null,"XYZ","2012-09-14",null,null,null,null,null,398]
[null,null,null,"XYZ","2012-09-17",null,null,null,null,null,408.6]
[null,null,null,"XYZ","2012-09-18",null,null,null,null,null,408.7]
[null,null,null,"XYZ","2012-09-19",null,null,null,null,null,404.9]
[null,null,null,"XYZ","2012-09-20",null,null,null,null,null,400]
[null,null,null,"XYZ","2012-09-21",null,null,null,null,null,396]
[null,null,null,"XYZ","2012-09-24",null,null,null,null,null,410]
[null,null,null,"XYZ","2012-09-25",null,null,null,null,null,406.05]
[null,null,null,"XYZ","2012-09-26",null,null,null,null,null,398.55]
[null,null,null,"XYZ","2012-09-27",null,null,null,null,null,396.9]
[null,null,null,"XYZ","2012-09-28",null,null,null,null,null,400.05]